[Event "Titled Tuesday Blitz April 25 Late 2023"]
[White "Rottenwohrer Suarez, Juan"]
[Black "Marchesich, Giovanni"]
[WhiteFideId "32068182"]
[BlackFideId "2824790"]
[WhiteElo "2174"]
[BlackElo "2209"]
[Result "1-0"]
[Round "07"]
[TimeControl "180+2"]
[Date "2023.04.25"]
[WhiteClock "0:00:05"]
[BlackClock "0:00:19"]

1. c4 {[%clk 0:02:27]}  b6 {[%clk 0:02:58]} 2. e4 {[%clk 0:02:25]}  e5 {[%clk 0:02:55]} 3. Nf3 {[%clk 0:02:20]}  Bb7 {[%clk 0:02:45]} 4. Nxe5 {[%clk 0:02:09]}  Qe7 {[%clk 0:02:44]} 5. Nf3 {[%clk 0:02:04]}  Bxe4 {[%clk 0:02:43]} 6. Be2 {[%clk 0:01:43]}  Bxf3 {[%clk 0:02:43]} 7. gxf3 {[%clk 0:01:44]}  Nc6 {[%clk 0:02:42]} 8. d4 {[%clk 0:01:44]}  O-O-O {[%clk 0:02:35]} 9. Nc3 {[%clk 0:01:44]}  Nf6 {[%clk 0:02:34]} 10. Bg5 {[%clk 0:01:43]}  Re8 {[%clk 0:02:19]} 11. a3 {[%clk 0:01:10]}  Qd6 {[%clk 0:02:13]} 12. Be3 {[%clk 0:00:46]}  g6 {[%clk 0:02:04]} 13. Nb5 {[%clk 0:00:46]}  Qe7 {[%clk 0:02:03]} 14. d5 {[%clk 0:00:45]}  Ne5 {[%clk 0:02:02]} 15. Nxa7+ {[%clk 0:00:45]}  Kb7 {[%clk 0:02:01]} 16. Nb5 {[%clk 0:00:46]}  d6 {[%clk 0:01:54]} 17. a4 {[%clk 0:00:37]}  Bg7 {[%clk 0:01:49]} 18. a5 {[%clk 0:00:37]}  Ra8 {[%clk 0:01:49]} 19. b4 {[%clk 0:00:36]}  Nfd7 {[%clk 0:01:42]} 20. Ra2 {[%clk 0:00:32]}  f5 {[%clk 0:01:40]} 21. f4 {[%clk 0:00:28]}  Ng4 {[%clk 0:01:37]} 22. Bxg4 {[%clk 0:00:24]}  fxg4 {[%clk 0:01:38]} 23. a6+ {[%clk 0:00:21]}  Kc8 {[%clk 0:01:34]} 24. Qxg4 {[%clk 0:00:19]}  Qe4 {[%clk 0:01:25]} 25. O-O {[%clk 0:00:15]}  Kd8 {[%clk 0:01:17]} 26. Rc1 {[%clk 0:00:13]}  g5 {[%clk 0:01:08]} 27. a7 {[%clk 0:00:08]}  Be5 {[%clk 0:01:05]} 28. Qg2 {[%clk 0:00:05]}  Qxg2+ {[%clk 0:00:48]} 29. Kxg2 {[%clk 0:00:05]}  gxf4 {[%clk 0:00:49]} 30. Bd4 {[%clk 0:00:05]}  Rg8+ {[%clk 0:00:49]} 31. Kf3 {[%clk 0:00:06]}  Bxd4 {[%clk 0:00:47]} 32. Nxd4 {[%clk 0:00:06]}  Ne5+ {[%clk 0:00:48]} 33. Ke4 {[%clk 0:00:05]}  Kd7 {[%clk 0:00:45]} 34. c5 {[%clk 0:00:03]}  Rg2 {[%clk 0:00:40]} 35. c6+ {[%clk 0:00:04]}  Ke7 {[%clk 0:00:39]} 36. Rf1 {[%clk 0:00:04]}  Rxh2 {[%clk 0:00:39]} 37. Nf5+ {[%clk 0:00:03]}  Kf6 {[%clk 0:00:38]} 38. Nd4 {[%clk 0:00:04]}  Rh4 {[%clk 0:00:34]} 39. Ne6 {[%clk 0:00:04]}  f3+ {[%clk 0:00:35]} 40. Ke3 {[%clk 0:00:05]}  Nc4+ {[%clk 0:00:31]} 41. Kxf3 {[%clk 0:00:04]}  Kf5 {[%clk 0:00:19]} 42. Nxc7 {[%clk 0:00:04]}  Rf4+ {[%clk 0:00:19]} 43. Ke2 {[%clk 0:00:04]}  Re4+ {[%clk 0:00:19]} 44. Kd1 {[%clk 0:00:04]}  Rd4+ {[%clk 0:00:19]} 45. Kc1 {[%clk 0:00:05]} 1-0


[Site "https://www.chess.com"]

[Event "Titled Tuesday Blitz April 25 Late 2023"]
[White "Rios Escobar, Adan"]
[Black "Chakravarthi Reddy, M"]
[WhiteFideId "3403645"]
[BlackFideId "25009532"]
[WhiteElo "2234"]
[BlackElo "2201"]
[Result "1-0"]
[Round "07"]
[TimeControl "180+2"]
[Date "2023.04.25"]
[WhiteClock "0:01:32"]
[BlackClock "0:00:27"]

1. d4 {[%clk 0:03:00]}  d5 {[%clk 0:02:58]} 2. g3 {[%clk 0:02:58]}  Nf6 {[%clk 0:02:55]} 3. Nf3 {[%clk 0:02:57]}  c5 {[%clk 0:02:54]} 4. Bg2 {[%clk 0:02:57]}  cxd4 {[%clk 0:02:44]} 5. O-O {[%clk 0:02:57]}  Nc6 {[%clk 0:02:38]} 6. Nxd4 {[%clk 0:02:57]}  h6 {[%clk 0:02:37]} 7. Nxc6 {[%clk 0:02:55]}  bxc6 {[%clk 0:02:38]} 8. c4 {[%clk 0:02:56]}  e5 {[%clk 0:02:35]} 9. Nc3 {[%clk 0:02:56]}  d4 {[%clk 0:02:26]} 10. Bxc6+ {[%clk 0:02:50]}  Bd7 {[%clk 0:02:26]} 11. Bxa8 {[%clk 0:02:50]}  Qxa8 {[%clk 0:02:26]} 12. Nb5 {[%clk 0:02:44]}  Qb7 {[%clk 0:02:11]} 13. f3 {[%clk 0:02:38]}  Bc5 {[%clk 0:02:03]} 14. b4 {[%clk 0:02:34]}  Bxb4 {[%clk 0:01:58]} 15. Qb3 {[%clk 0:02:28]}  Bxb5 {[%clk 0:01:38]} 16. Qxb4 {[%clk 0:02:20]}  Bc6 {[%clk 0:01:37]} 17. Qd6 {[%clk 0:02:13]}  Nd7 {[%clk 0:00:57]} 18. Ba3 {[%clk 0:02:10]}  Kd8 {[%clk 0:00:51]} 19. Rab1 {[%clk 0:02:03]}  Qc7 {[%clk 0:00:49]} 20. Qe7+ {[%clk 0:01:53]}  Kc8 {[%clk 0:00:48]} 21. Bd6 {[%clk 0:01:53]}  Qd8 {[%clk 0:00:32]} 22. Qxf7 {[%clk 0:01:41]}  Qf6 {[%clk 0:00:31]} 23. Rb8+ {[%clk 0:01:33]}  Nxb8 {[%clk 0:00:27]} 24. Qc7# {[%clk 0:01:32]} 1-0


[Site "https://www.chess.com"]

[Event "Titled Tuesday Blitz April 25 Late 2023"]
[White "Nakamura, Hikaru"]
[Black "Kuzubov, Yuriy"]
[WhiteFideId "2016192"]
[BlackFideId "14112906"]
[WhiteElo "2885"]
[BlackElo "2496"]
[Result "0-1"]
[Round "08"]
[TimeControl "180+2"]
[Date "2023.04.25"]
[WhiteClock "0:00:10"]
[BlackClock "0:00:09"]

1. Nf3 {[%clk 0:03:00]}  d5 {[%clk 0:02:58]} 2. e3 {[%clk 0:03:00]}  Nf6 {[%clk 0:02:58]} 3. c4 {[%clk 0:03:00]}  e6 {[%clk 0:02:58]} 4. b3 {[%clk 0:03:01]}  Be7 {[%clk 0:02:57]} 5. Bb2 {[%clk 0:03:01]}  O-O {[%clk 0:02:57]} 6. cxd5 {[%clk 0:02:59]}  exd5 {[%clk 0:02:57]} 7. d4 {[%clk 0:03:00]}  Bf5 {[%clk 0:02:52]} 8. Bd3 {[%clk 0:02:56]}  Bxd3 {[%clk 0:02:51]} 9. Qxd3 {[%clk 0:02:56]}  c6 {[%clk 0:02:49]} 10. Nbd2 {[%clk 0:02:53]}  Re8 {[%clk 0:02:42]} 11. O-O {[%clk 0:02:53]}  Bb4 {[%clk 0:02:42]} 12. Ne5 {[%clk 0:02:53]}  Nbd7 {[%clk 0:02:37]} 13. Ndf3 {[%clk 0:02:52]}  Ne4 {[%clk 0:02:25]} 14. a3 {[%clk 0:02:50]}  Bf8 {[%clk 0:02:21]} 15. Qc2 {[%clk 0:02:50]}  a5 {[%clk 0:02:13]} 16. Nd3 {[%clk 0:02:50]}  f6 {[%clk 0:02:08]} 17. h4 {[%clk 0:02:45]}  Qe7 {[%clk 0:02:00]} 18. Qe2 {[%clk 0:02:37]}  a4 {[%clk 0:01:53]} 19. b4 {[%clk 0:02:37]}  Nb6 {[%clk 0:01:52]} 20. Nc5 {[%clk 0:02:37]}  Nc4 {[%clk 0:01:48]} 21. Rac1 {[%clk 0:02:36]}  Ned6 {[%clk 0:01:47]} 22. Rc2 {[%clk 0:02:20]}  b6 {[%clk 0:01:46]} 23. Nd3 {[%clk 0:02:20]}  b5 {[%clk 0:01:42]} 24. Bc1 {[%clk 0:02:16]}  Ne4 {[%clk 0:01:41]} 25. h5 {[%clk 0:02:12]}  Qf7 {[%clk 0:01:40]} 26. Nh4 {[%clk 0:02:08]}  Ned6 {[%clk 0:01:27]} 27. g3 {[%clk 0:02:04]}  Re4 {[%clk 0:01:26]} 28. Qf3 {[%clk 0:02:02]}  Rae8 {[%clk 0:01:23]} 29. Kg2 {[%clk 0:02:02]}  g5 {[%clk 0:01:11]} 30. hxg6 {[%clk 0:02:02]}  hxg6 {[%clk 0:01:12]} 31. Qd1 {[%clk 0:02:00]}  g5 {[%clk 0:01:06]} 32. Nf3 {[%clk 0:01:59]}  Nf5 {[%clk 0:01:06]} 33. Re2 {[%clk 0:01:49]}  Qg6 {[%clk 0:00:59]} 34. Rh1 {[%clk 0:01:42]}  Bd6 {[%clk 0:00:54]} 35. Kg1 {[%clk 0:01:37]}  Bxg3 {[%clk 0:00:49]} 36. fxg3 {[%clk 0:01:24]}  Nxg3 {[%clk 0:00:48]} 37. Nf2 {[%clk 0:01:25]}  Nxh1 {[%clk 0:00:40]} 38. Nxh1 {[%clk 0:00:53]}  Nxe3 {[%clk 0:00:36]} 39. Bxe3 {[%clk 0:00:49]}  Rxe3 {[%clk 0:00:36]} 40. Rxe3 {[%clk 0:00:49]}  Rxe3 {[%clk 0:00:36]} 41. Nf2 {[%clk 0:00:45]}  g4 {[%clk 0:00:26]} 42. Nh4 {[%clk 0:00:42]}  Qg5 {[%clk 0:00:22]} 43. Ng2 {[%clk 0:00:42]}  Rf3 {[%clk 0:00:15]} 44. Ne1 {[%clk 0:00:33]}  Rg3+ {[%clk 0:00:14]} 45. Ng2 {[%clk 0:00:32]}  Rxa3 {[%clk 0:00:14]} 46. Qe1 {[%clk 0:00:22]}  Kf7 {[%clk 0:00:13]} 47. Qb1 {[%clk 0:00:22]}  Qg6 {[%clk 0:00:12]} 48. Qc1 {[%clk 0:00:22]}  Ra2 {[%clk 0:00:10]} 49. Qxc6 {[%clk 0:00:11]}  Ra1+ {[%clk 0:00:09]} 50. Kh2 {[%clk 0:00:11]}  g3+ {[%clk 0:00:10]} 51. Kh3 {[%clk 0:00:12]}  gxf2 {[%clk 0:00:09]} 52. Qd7+ {[%clk 0:00:13]}  Kg8 {[%clk 0:00:09]} 53. Qxd5+ {[%clk 0:00:10]}  Qf7 {[%clk 0:00:09]} 54. Qd8+ {[%clk 0:00:10]}  Kg7 {[%clk 0:00:09]} 0-1


[Site "https://www.chess.com"]

[Event "Titled Tuesday Blitz April 25 Late 2023"]
[White "Ghazarian, Kirk"]
[Black "Van Foreest, Jorden"]
[WhiteFideId "30908604"]
[BlackFideId "1039784"]
[WhiteElo "2346"]
[BlackElo "2633"]
[Result "0-1"]
[Round "08"]
[TimeControl "180+2"]
[Date "2023.04.25"]
[WhiteClock "0:00:08"]
[BlackClock "0:00:20"]

1. e4 {[%clk 0:03:00]}  e5 {[%clk 0:02:57]} 2. Nf3 {[%clk 0:03:01]}  Nc6 {[%clk 0:02:57]} 3. Bc4 {[%clk 0:03:01]}  Nf6 {[%clk 0:02:57]} 4. d3 {[%clk 0:03:01]}  Bc5 {[%clk 0:02:54]} 5. c3 {[%clk 0:03:00]}  d6 {[%clk 0:02:54]} 6. h3 {[%clk 0:03:00]}  a5 {[%clk 0:02:54]} 7. O-O {[%clk 0:02:58]}  Ba7 {[%clk 0:02:52]} 8. Bb3 {[%clk 0:02:57]}  h6 {[%clk 0:02:53]} 9. Re1 {[%clk 0:02:56]}  g5 {[%clk 0:02:53]} 10. Be3 {[%clk 0:02:52]}  g4 {[%clk 0:02:52]} 11. hxg4 {[%clk 0:02:47]}  Bxg4 {[%clk 0:02:48]} 12. Bxa7 {[%clk 0:02:44]}  Rxa7 {[%clk 0:02:45]} 13. Nbd2 {[%clk 0:02:41]}  Rg8 {[%clk 0:02:46]} 14. Qe2 {[%clk 0:02:32]}  Nh5 {[%clk 0:02:42]} 15. Qe3 {[%clk 0:02:20]}  Nf4 {[%clk 0:02:41]} 16. g3 {[%clk 0:02:15]}  Qf6 {[%clk 0:02:38]} 17. Nh2 {[%clk 0:02:02]}  Bh3 {[%clk 0:02:34]} 18. Qf3 {[%clk 0:01:36]}  a4 {[%clk 0:02:18]} 19. Bc4 {[%clk 0:01:22]}  Ne7 {[%clk 0:02:16]} 20. d4 {[%clk 0:01:18]}  Neg6 {[%clk 0:02:14]} 21. Ng4 {[%clk 0:01:09]}  Qg5 {[%clk 0:02:01]} 22. Ne3 {[%clk 0:00:58]}  Nh4 {[%clk 0:01:45]} 23. Qh1 {[%clk 0:00:56]}  Nhg2 {[%clk 0:01:38]} 24. Nxg2 {[%clk 0:00:52]}  Bxg2 {[%clk 0:01:38]} 25. Qh2 {[%clk 0:00:46]}  Kf8 {[%clk 0:01:27]} 26. Re3 {[%clk 0:00:39]}  Bh3 {[%clk 0:01:09]} 27. Bf1 {[%clk 0:00:35]}  Bg4 {[%clk 0:01:06]} 28. Kh1 {[%clk 0:00:29]}  Ne6 {[%clk 0:01:02]} 29. d5 {[%clk 0:00:28]}  Nc5 {[%clk 0:01:00]} 30. Bh3 {[%clk 0:00:24]}  h5 {[%clk 0:01:00]} 31. Bxg4 {[%clk 0:00:22]}  Qxg4 {[%clk 0:00:50]} 32. Rg1 {[%clk 0:00:23]}  Ra6 {[%clk 0:00:44]} 33. Qh4 {[%clk 0:00:21]}  Rg5 {[%clk 0:00:34]} 34. Qxg4 {[%clk 0:00:20]}  hxg4 {[%clk 0:00:34]} 35. Kg2 {[%clk 0:00:17]}  Rh5 {[%clk 0:00:34]} 36. Rh1 {[%clk 0:00:17]}  Rxh1 {[%clk 0:00:34]} 37. Kxh1 {[%clk 0:00:18]}  Kg7 {[%clk 0:00:34]} 38. Kg2 {[%clk 0:00:18]}  Kg6 {[%clk 0:00:35]} 39. f3 {[%clk 0:00:16]}  gxf3+ {[%clk 0:00:34]} 40. Nxf3 {[%clk 0:00:15]}  Rb6 {[%clk 0:00:33]} 41. Re2 {[%clk 0:00:15]}  Nd3 {[%clk 0:00:33]} 42. Nh4+ {[%clk 0:00:12]}  Kf6 {[%clk 0:00:32]} 43. b4 {[%clk 0:00:10]}  axb3 {[%clk 0:00:31]} 44. axb3 {[%clk 0:00:10]}  Rxb3 {[%clk 0:00:31]} 45. c4 {[%clk 0:00:11]}  Rb2 {[%clk 0:00:30]} 46. Kf3 {[%clk 0:00:07]}  Rxe2 {[%clk 0:00:30]} 47. Kxe2 {[%clk 0:00:08]}  Nb2 {[%clk 0:00:30]} 48. Nf5 {[%clk 0:00:06]}  Nxc4 {[%clk 0:00:30]} 49. Kd3 {[%clk 0:00:07]}  b5 {[%clk 0:00:29]} 50. Nh4 {[%clk 0:00:06]}  Nb2+ {[%clk 0:00:25]} 51. Kc3 {[%clk 0:00:06]}  Na4+ {[%clk 0:00:26]} 52. Kb4 {[%clk 0:00:07]}  Nc5 {[%clk 0:00:27]} 53. Kxb5 {[%clk 0:00:06]}  Nxe4 {[%clk 0:00:27]} 54. Kc6 {[%clk 0:00:07]}  Nxg3 {[%clk 0:00:26]} 55. Kxc7 {[%clk 0:00:08]}  Ke7 {[%clk 0:00:18]} 56. Nf3 {[%clk 0:00:05]}  e4 {[%clk 0:00:16]} 57. Nd4 {[%clk 0:00:04]}  e3 {[%clk 0:00:16]} 58. Nc6+ {[%clk 0:00:03]}  Kf6 {[%clk 0:00:17]} 59. Nd4 {[%clk 0:00:02]}  e2 {[%clk 0:00:17]} 60. Nxe2 {[%clk 0:00:02]}  Nxe2 {[%clk 0:00:18]} 61. Kxd6 {[%clk 0:00:03]}  Nf4 {[%clk 0:00:19]} 62. Kc5 {[%clk 0:00:03]}  Nxd5 {[%clk 0:00:19]} 63. Kxd5 {[%clk 0:00:04]}  Kg5 {[%clk 0:00:19]} 64. Ke4 {[%clk 0:00:05]}  Kg4 {[%clk 0:00:19]} 65. Ke3 {[%clk 0:00:05]}  f5 {[%clk 0:00:18]} 66. Kf2 {[%clk 0:00:06]}  Kf4 {[%clk 0:00:19]} 67. Kg2 {[%clk 0:00:07]}  Ke3 {[%clk 0:00:19]} 68. Kf1 {[%clk 0:00:07]}  Kf3 {[%clk 0:00:19]} 69. Ke1 {[%clk 0:00:08]}  Kg2 {[%clk 0:00:20]} 0-1


[Site "https://www.chess.com"]

[Event "Titled Tuesday Blitz April 25 Late 2023"]
[White "Bryakin, Mikhail"]
[Black "Caruana, Fabiano"]
[WhiteFideId "4165314"]
[BlackFideId "2020009"]
[WhiteElo "2447"]
[BlackElo "2837"]
[Result "0-1"]
[Round "08"]
[TimeControl "180+2"]
[Date "2023.04.25"]
[WhiteClock "0:00:12"]
[BlackClock "0:01:23"]

1. Nf3 {[%clk 0:03:00]}  b5 {[%clk 0:02:59]} 2. a4 {[%clk 0:02:58]}  b4 {[%clk 0:02:58]} 3. g3 {[%clk 0:02:57]}  Bb7 {[%clk 0:02:58]} 4. Bg2 {[%clk 0:02:58]}  g6 {[%clk 0:02:56]} 5. O-O {[%clk 0:02:56]}  Bg7 {[%clk 0:02:57]} 6. d4 {[%clk 0:02:56]}  Nf6 {[%clk 0:02:57]} 7. c4 {[%clk 0:02:56]}  O-O {[%clk 0:02:56]} 8. Nbd2 {[%clk 0:02:53]}  a5 {[%clk 0:02:56]} 9. b3 {[%clk 0:02:52]}  e6 {[%clk 0:02:52]} 10. Bb2 {[%clk 0:02:52]}  d6 {[%clk 0:02:49]} 11. Qc2 {[%clk 0:02:52]}  Nbd7 {[%clk 0:02:49]} 12. e4 {[%clk 0:02:47]}  c5 {[%clk 0:02:45]} 13. d5 {[%clk 0:02:46]}  e5 {[%clk 0:02:44]} 14. Ne1 {[%clk 0:02:45]}  Bc8 {[%clk 0:02:44]} 15. Nd3 {[%clk 0:02:44]}  h5 {[%clk 0:02:38]} 16. f4 {[%clk 0:02:32]}  h4 {[%clk 0:02:24]} 17. f5 {[%clk 0:02:00]}  hxg3 {[%clk 0:02:19]} 18. hxg3 {[%clk 0:02:01]}  Ng4 {[%clk 0:02:19]} 19. Rae1 {[%clk 0:01:57]}  Ndf6 {[%clk 0:02:17]} 20. Nf2 {[%clk 0:01:45]}  Nxf2 {[%clk 0:02:14]} 21. Rxf2 {[%clk 0:01:45]}  Ng4 {[%clk 0:02:15]} 22. Rff1 {[%clk 0:01:42]}  Qg5 {[%clk 0:02:10]} 23. Nf3 {[%clk 0:01:42]}  Qh5 {[%clk 0:02:10]} 24. Qd2 {[%clk 0:01:15]}  Bh6 {[%clk 0:02:05]} 25. Qe2 {[%clk 0:01:13]}  Be3+ {[%clk 0:02:02]} 26. Qxe3 {[%clk 0:01:08]}  Nxe3 {[%clk 0:02:03]} 27. Rxe3 {[%clk 0:01:08]}  gxf5 {[%clk 0:02:03]} 28. exf5 {[%clk 0:01:04]}  Bxf5 {[%clk 0:02:03]} 29. Nxe5 {[%clk 0:01:04]}  Rae8 {[%clk 0:01:49]} 30. Ref3 {[%clk 0:00:35]}  Be4 {[%clk 0:01:33]} 31. Nd7 {[%clk 0:00:35]}  f5 {[%clk 0:01:32]} 32. Nf6+ {[%clk 0:00:24]}  Rxf6 {[%clk 0:01:31]} 33. Bxf6 {[%clk 0:00:25]}  Bxf3 {[%clk 0:01:31]} 34. Bxf3 {[%clk 0:00:22]}  Qg6 {[%clk 0:01:29]} 35. Bh4 {[%clk 0:00:23]}  Re3 {[%clk 0:01:28]} 36. Bg2 {[%clk 0:00:22]}  Rxb3 {[%clk 0:01:25]} 37. Bh3 {[%clk 0:00:20]}  Rxg3+ {[%clk 0:01:24]} 38. Bxg3 {[%clk 0:00:16]}  Qxg3+ {[%clk 0:01:25]} 39. Bg2 {[%clk 0:00:17]}  b3 {[%clk 0:01:25]} 40. Rb1 {[%clk 0:00:12]}  Qd3 {[%clk 0:01:23]} 0-1


[Site "https://www.chess.com"]

[Event "Titled Tuesday Blitz April 25 Late 2023"]
[White "Bronstein, Or"]
[Black "Durarbayli, Vasif"]
[WhiteFideId "2815770"]
[BlackFideId "13402935"]
[WhiteElo "2356"]
[BlackElo "2551"]
[Result "0-1"]
[Round "08"]
[TimeControl "180+2"]
[Date "2023.04.25"]
[WhiteClock "0:00:10"]
[BlackClock "0:00:06"]

1. d4 {[%clk 0:03:00]}  Nf6 {[%clk 0:02:59]} 2. c4 {[%clk 0:03:01]}  e6 {[%clk 0:03:00]} 3. Nc3 {[%clk 0:03:01]}  Bb4 {[%clk 0:03:00]} 4. e3 {[%clk 0:02:59]}  O-O {[%clk 0:03:00]} 5. Bd3 {[%clk 0:02:58]}  d6 {[%clk 0:03:00]} 6. Ne2 {[%clk 0:02:57]}  e5 {[%clk 0:02:59]} 7. O-O {[%clk 0:02:57]}  Nc6 {[%clk 0:02:58]} 8. Nd5 {[%clk 0:02:50]}  Ba5 {[%clk 0:02:39]} 9. Qa4 {[%clk 0:02:15]}  Bb6 {[%clk 0:02:12]} 10. Nxb6 {[%clk 0:02:04]}  cxb6 {[%clk 0:02:10]} 11. d5 {[%clk 0:02:02]}  e4 {[%clk 0:01:45]} 12. Bb1 {[%clk 0:01:26]}  Ne5 {[%clk 0:01:31]} 13. Ng3 {[%clk 0:01:26]}  Bd7 {[%clk 0:01:27]} 14. Qd1 {[%clk 0:01:27]}  Bg4 {[%clk 0:01:11]} 15. Qd4 {[%clk 0:01:26]}  Re8 {[%clk 0:01:04]} 16. Nxe4 {[%clk 0:01:19]}  Nxe4 {[%clk 0:00:35]} 17. Bxe4 {[%clk 0:01:20]}  f5 {[%clk 0:00:35]} 18. f4 {[%clk 0:00:31]}  fxe4 {[%clk 0:00:26]} 19. fxe5 {[%clk 0:00:30]}  Rxe5 {[%clk 0:00:26]} 20. Bd2 {[%clk 0:00:30]}  Qg5 {[%clk 0:00:23]} 21. Be1 {[%clk 0:00:27]}  Qg6 {[%clk 0:00:14]} 22. Bg3 {[%clk 0:00:26]}  Re7 {[%clk 0:00:15]} 23. Rf4 {[%clk 0:00:24]}  Rae8 {[%clk 0:00:15]} 24. Raf1 {[%clk 0:00:23]}  h5 {[%clk 0:00:15]} 25. Bh4 {[%clk 0:00:20]}  Rc7 {[%clk 0:00:14]} 26. b3 {[%clk 0:00:20]}  Be2 {[%clk 0:00:06]} 27. R1f2 {[%clk 0:00:20]}  Bg4 {[%clk 0:00:07]} 28. Kh1 {[%clk 0:00:19]}  b5 {[%clk 0:00:04]} 29. h3 {[%clk 0:00:19]}  Bc8 {[%clk 0:00:03]} 30. cxb5 {[%clk 0:00:18]}  b6 {[%clk 0:00:03]} 31. Kh2 {[%clk 0:00:18]}  Rc5 {[%clk 0:00:03]} 32. b4 {[%clk 0:00:14]}  Rc1 {[%clk 0:00:02]} 33. Be7 {[%clk 0:00:14]}  Rxe7 {[%clk 0:00:02]} 34. Rf8+ {[%clk 0:00:14]}  Kh7 {[%clk 0:00:03]} 35. Rxc8 {[%clk 0:00:15]}  Rxc8 {[%clk 0:00:01]} 36. Rf4 {[%clk 0:00:12]}  Rce8 {[%clk 0:00:02]} 37. Qd2 {[%clk 0:00:10]}  Qg5 {[%clk 0:00:02]} 38. Qf2 {[%clk 0:00:11]}  Qe5 {[%clk 0:00:03]} 39. h4 {[%clk 0:00:10]}  Qxd5 {[%clk 0:00:03]} 40. Rf5 {[%clk 0:00:10]}  Re5 {[%clk 0:00:04]} 41. Rf7 {[%clk 0:00:10]}  Qe6 {[%clk 0:00:04]} 42. Qf4 {[%clk 0:00:10]}  Qg6 {[%clk 0:00:05]} 43. Rxa7 {[%clk 0:00:09]}  Rf5 {[%clk 0:00:05]} 44. Qg3 {[%clk 0:00:08]}  Qxg3+ {[%clk 0:00:06]} 45. Kxg3 {[%clk 0:00:09]}  Rxb5 {[%clk 0:00:06]} 46. Rd7 {[%clk 0:00:09]}  Rxb4 {[%clk 0:00:06]} 47. Rxd6 {[%clk 0:00:10]}  Ra4 {[%clk 0:00:06]} 48. Re6 {[%clk 0:00:10]}  Rxe6 {[%clk 0:00:06]} 0-1


[Site "https://www.chess.com"]

[Event "Titled Tuesday Blitz April 25 Late 2023"]
[White "Zhigalko, Sergei"]
[Black "Horton, Andrew P"]
[WhiteFideId "13502956"]
[BlackFideId "424269"]
[WhiteElo "2626"]
[BlackElo "2401"]
[Result "1-0"]
[Round "08"]
[TimeControl "180+2"]
[Date "2023.04.25"]
[WhiteClock "0:00:51"]
[BlackClock "0:01:05"]

1. e4 {[%clk 0:03:00]}  c6 {[%clk 0:02:59]} 2. d4 {[%clk 0:03:01]}  d5 {[%clk 0:03:00]} 3. e5 {[%clk 0:03:01]}  Bf5 {[%clk 0:03:00]} 4. Nf3 {[%clk 0:03:02]}  e6 {[%clk 0:02:59]} 5. Be2 {[%clk 0:03:03]}  Ne7 {[%clk 0:03:00]} 6. O-O {[%clk 0:03:03]}  c5 {[%clk 0:03:00]} 7. dxc5 {[%clk 0:03:03]}  Nec6 {[%clk 0:02:59]} 8. Be3 {[%clk 0:03:02]}  Nd7 {[%clk 0:02:57]} 9. c4 {[%clk 0:03:03]}  dxc4 {[%clk 0:02:48]} 10. Na3 {[%clk 0:03:03]}  Bxc5 {[%clk 0:02:44]} 11. Nxc4 {[%clk 0:03:03]}  O-O {[%clk 0:02:42]} 12. Qc1 {[%clk 0:03:02]}  Bxe3 {[%clk 0:02:38]} 13. Qxe3 {[%clk 0:03:01]}  Bg6 {[%clk 0:02:29]} 14. Rfd1 {[%clk 0:02:51]}  Qc7 {[%clk 0:02:26]} 15. Rac1 {[%clk 0:02:44]}  Rab8 {[%clk 0:02:20]} 16. h3 {[%clk 0:02:42]}  Rfd8 {[%clk 0:02:19]} 17. a3 {[%clk 0:02:40]}  h6 {[%clk 0:02:10]} 18. b4 {[%clk 0:02:39]}  Nb6 {[%clk 0:02:04]} 19. Nd6 {[%clk 0:01:50]}  Qd7 {[%clk 0:01:48]} 20. Bb5 {[%clk 0:01:32]}  Nd5 {[%clk 0:01:48]} 21. Qb3 {[%clk 0:01:16]}  a6 {[%clk 0:01:29]} 22. Bxc6 {[%clk 0:01:13]}  bxc6 {[%clk 0:01:30]} 23. Nd4 {[%clk 0:01:12]}  Ne7 {[%clk 0:01:25]} 24. Qa4 {[%clk 0:01:04]}  Rb6 {[%clk 0:01:14]} 25. Nc4 {[%clk 0:00:53]}  Rb5 {[%clk 0:01:05]} 26. Nxb5 {[%clk 0:00:51]} 1-0


[Site "https://www.chess.com"]

[Event "Titled Tuesday Blitz April 25 Late 2023"]
[White "Donchenko, Alexander"]
[Black "Adla, Diego"]
[WhiteFideId "24603295"]
[BlackFideId "100072"]
[WhiteElo "2542"]
[BlackElo "2377"]
[Result "1-0"]
[Round "08"]
[TimeControl "180+2"]
[Date "2023.04.25"]
[WhiteClock "0:00:19"]
[BlackClock "0:00:04"]

1. Nf3 {[%clk 0:03:00]}  d5 {[%clk 0:02:59]} 2. g3 {[%clk 0:03:00]}  Nd7 {[%clk 0:02:58]} 3. d4 {[%clk 0:03:00]}  Nb6 {[%clk 0:02:57]} 4. Bg2 {[%clk 0:03:00]}  Bf5 {[%clk 0:02:55]} 5. a4 {[%clk 0:03:00]}  a5 {[%clk 0:02:41]} 6. O-O {[%clk 0:03:00]}  e6 {[%clk 0:02:36]} 7. b3 {[%clk 0:03:00]}  Be7 {[%clk 0:02:33]} 8. c4 {[%clk 0:03:00]}  c6 {[%clk 0:02:29]} 9. Ba3 {[%clk 0:02:56]}  Nf6 {[%clk 0:02:24]} 10. Bxe7 {[%clk 0:02:54]}  Qxe7 {[%clk 0:02:25]} 11. c5 {[%clk 0:02:48]}  Nbd7 {[%clk 0:02:24]} 12. b4 {[%clk 0:02:48]}  axb4 {[%clk 0:02:17]} 13. Qb3 {[%clk 0:02:48]}  Ne4 {[%clk 0:02:17]} 14. Qxb4 {[%clk 0:02:46]}  Ndf6 {[%clk 0:02:17]} 15. Nbd2 {[%clk 0:02:44]}  Nxd2 {[%clk 0:02:08]} 16. Nxd2 {[%clk 0:02:44]}  O-O {[%clk 0:02:08]} 17. Ra3 {[%clk 0:02:42]}  e5 {[%clk 0:01:59]} 18. dxe5 {[%clk 0:02:37]}  Qxe5 {[%clk 0:01:59]} 19. Qxb7 {[%clk 0:02:35]}  Qxe2 {[%clk 0:01:42]} 20. Nf3 {[%clk 0:02:35]}  Bd7 {[%clk 0:01:33]} 21. a5 {[%clk 0:02:29]}  Rfb8 {[%clk 0:01:33]} 22. Qc7 {[%clk 0:02:29]}  Qb2 {[%clk 0:01:33]} 23. Rfa1 {[%clk 0:02:28]}  h6 {[%clk 0:01:22]} 24. a6 {[%clk 0:02:25]}  Ne4 {[%clk 0:01:17]} 25. Qxd7 {[%clk 0:02:00]}  Qxf2+ {[%clk 0:01:17]} 26. Kh1 {[%clk 0:02:01]}  Qxc5 {[%clk 0:01:18]} 27. R3a2 {[%clk 0:01:36]}  Rxa6 {[%clk 0:01:09]} 28. Ne5 {[%clk 0:01:24]}  Rxa2 {[%clk 0:01:02]} 29. Qxf7+ {[%clk 0:01:24]}  Kh8 {[%clk 0:00:59]} 30. Rxa2 {[%clk 0:01:11]}  Qe3 {[%clk 0:00:30]} 31. Qf1 {[%clk 0:00:25]}  Nxg3+ {[%clk 0:00:22]} 32. hxg3 {[%clk 0:00:26]}  Qxg3 {[%clk 0:00:23]} 33. Nf3 {[%clk 0:00:22]}  Re8 {[%clk 0:00:18]} 34. Qf2 {[%clk 0:00:20]}  Qxf2 {[%clk 0:00:14]} 35. Rxf2 {[%clk 0:00:21]}  c5 {[%clk 0:00:14]} 36. Rc2 {[%clk 0:00:19]}  Rc8 {[%clk 0:00:11]} 37. Ne5 {[%clk 0:00:19]}  d4 {[%clk 0:00:10]} 38. Rc4 {[%clk 0:00:18]}  Re8 {[%clk 0:00:09]} 39. Nd3 {[%clk 0:00:17]}  Re3 {[%clk 0:00:09]} 40. Nxc5 {[%clk 0:00:17]}  d3 {[%clk 0:00:08]} 41. Rd4 {[%clk 0:00:18]}  Re1+ {[%clk 0:00:06]} 42. Kh2 {[%clk 0:00:18]}  Rc1 {[%clk 0:00:07]} 43. Nxd3 {[%clk 0:00:17]}  Rd1 {[%clk 0:00:07]} 44. Rd8+ {[%clk 0:00:17]}  Kh7 {[%clk 0:00:07]} 45. Be4+ {[%clk 0:00:18]}  g6 {[%clk 0:00:08]} 46. Rd7+ {[%clk 0:00:18]}  Kg8 {[%clk 0:00:08]} 47. Bxg6 {[%clk 0:00:19]}  Rd2+ {[%clk 0:00:07]} 48. Kg3 {[%clk 0:00:19]}  Kf8 {[%clk 0:00:08]} 49. Kg4 {[%clk 0:00:19]}  Rg2+ {[%clk 0:00:07]} 50. Kf5 {[%clk 0:00:18]}  Rg1 {[%clk 0:00:03]} 51. Kf6 {[%clk 0:00:19]}  Rf1+ {[%clk 0:00:04]} 52. Bf5 {[%clk 0:00:19]}  Re1 {[%clk 0:00:04]} 53. Ne5 {[%clk 0:00:19]} 1-0


[Site "https://www.chess.com"]